fUST/lending_fUST_20240517
["ID","MTS","AMOUNT","RATE_DAILY","PERIOD"]
[327282735,1715961040682,-500.0,0.00016438,2]
[327282737,1715961040692,-500.0,0.00016438,2]
[327282738,1715961040701,-500.0,0.00016438,2]
[327282740,1715961040710,-500.0,0.00016438,2]
[327282741,1715961040719,-500.0,0.00016438,2]
[327282742,1715961040728,-503.41350441,0.00016438,2]
[327282744,1715961040739,-500.0,0.00016438,2]
[327282746,1715961040747,-500.0,0.00016438,2]
[327282748,1715961040756,-500.0,0.00016438,2]
[327282750,1715961040767,-500.0,0.00016438,2]
[327282752,1715961040776,-501.89316035,0.00016438,2]
[327282754,1715961040785,-500.0,0.00016438,2]
[327282756,1715961040794,-500.0,0.00016438,2]
[327282758,1715961040804,-500.0,0.00016438,2]
[327282760,1715961040813,-500.0,0.00016438,2]
[327282762,1715961040823,-500.0,0.00016438,2]
[327282764,1715961040832,-500.0,0.00016438,2]
[327282766,1715961040845,-528.75298266,0.00016438,2]
[327282768,1715961040855,-500.0,0.00016438,2]
[327282770,1715961040864,-500.0,0.00016438,2]
[327282772,1715961040873,-500.0,0.00016438,2]
[327282774,1715961040882,-500.0,0.00016438,2]
[327282776,1715961040893,-500.0,0.00016438,2]
[327282778,1715961040903,-500.0,0.00016438,2]
[327282780,1715961040912,-500.0,0.00016438,2]
[327282782,1715961040922,-622.62,0.00016438,2]
[327282784,1715961040932,-591.6070503,0.00016438,2]
[327282786,1715961040942,-90.43112604,0.00016438,2]
[327282789,1715961040962,-414.82184532,0.00016438,2]
[327282791,1715961040972,-195.66235468,0.00016438,2]
[327282793,1715961040984,-305.55099886,0.00016438,2]
[327282795,1715961040993,-500.0,0.00016438,2]
[327282797,1715961041003,-500.0,0.00016438,2]
[327282799,1715961041012,-500.0,0.00016438,2]
[327282801,1715961041022,-500.0,0.00016438,2]
[327282803,1715961041032,-500.0,0.00016438,2]
[327282805,1715961041042,-304.9623392,0.00016438,2]
[327282807,1715961041051,-500.0,0.00016438,2]
[327282809,1715961041060,-500.0,0.00016438,2]
[327282811,1715961041069,-500.0,0.00016438,2]
[327282813,1715961041079,-500.0,0.00016438,2]
[327282815,1715961041088,-500.0,0.00016438,2]
[327282817,1715961041097,-500.0,0.00016438,2]
[327282819,1715961041107,-500.0,0.00016438,2]
[327282821,1715961041116,-500.0,0.00016438,2]
[327282823,1715961041126,-413.28678498,0.00016438,2]
[327282825,1715961041135,-500.0,0.00016438,2]
[327282827,1715961041144,-500.0,0.00016438,2]
[327282829,1715961041154,-500.0,0.00016438,2]
[327282831,1715961041163,-464.97971763,0.00016438,2]
[327282833,1715961041172,-544.46,0.00016438,2]
[327282835,1715961041182,-502.47173173,0.00016438,2]
[327282838,1715961041191,-500.60062923,0.00016438,2]
[327282839,1715961041200,-285.63448689,0.00016438,2]
[327282991,1715961043123,-214.36551311,0.00016438,2]
[327282992,1715961043134,-500.0,0.00016438,2]
[327282993,1715961043146,-504.6442418,0.00016438,2]
[327282994,1715961043155,-518.63924578,0.00016438,2]
[327282996,1715961043165,-500.0,0.00016438,2]
[327282998,1715961043174,-501.30887622,0.00016438,2]
[327283000,1715961043185,-500.0,0.00016438,2]
[327283002,1715961043195,-500.0,0.00016438,2]
[327283004,1715961043205,-500.0,0.00016438,2]
[327283005,1715961043214,-500.0,0.00016438,2]
[327283007,1715961043223,-500.0,0.00016438,2]
[327283009,1715961043233,-500.0,0.00016438,2]
[327283010,1715961043245,-500.0,0.00016438,2]
[327283011,1715961043254,-572.65,0.00016438,2]
[327283012,1715961043263,-562.6788788,0.00016438,2]
[327283013,1715961043273,-500.9350361,0.00016438,2]
[327283014,1715961043283,-500.0,0.00016438,2]
[327283015,1715961043292,-500.46837249,0.00016438,2]
[327283016,1715961043302,-500.94926223,0.00016438,2]
[327283017,1715961043312,-500.0,0.00016438,2]
[327283018,1715961043321,-500.0,0.00016438,2]
[327283019,1715961043330,-500.0,0.00016438,2]
[327283020,1715961043340,-500.0,0.00016438,2]
[327283021,1715961043349,-1000.0,0.00016438,2]
[327283022,1715961043358,-500.41513102,0.00016438,2]
[327283023,1715961043368,-502.66384522,0.00016438,2]
[327283024,1715961043377,-503.3423012,0.00016438,2]
[327283025,1715961043386,-500.0,0.00016438,2]
[327283026,1715961043395,-502.01520425,0.00016438,2]
[327283027,1715961043404,-502.83170108,0.00016438,2]
[327283028,1715961043413,-417.47249467,0.00016438,2]
[327283029,1715961043423,-502.35190748,0.00016438,2]
[327283030,1715961043432,-343.3370825,0.00016438,2]
[327283031,1715961043442,-500.0,0.00016438,2]
[327283032,1715961043452,-500.0,0.00016438,2]
[327283033,1715961043462,-500.0,0.00016438,2]
[327283034,1715961043471,-503.41471285,0.00016438,2]
[327283036,1715961043482,-500.0,0.00016438,4]
[327283038,1715961043494,-503.10936398,0.00016438,2]
[327283040,1715961043504,-500.0,0.00016438,2]
[327283043,1715961043514,-500.0,0.00016438,2]
[327283046,1715961043523,-500.0,0.00016438,2]
[327283047,1715961043532,-500.0,0.00016438,2]
[327283048,1715961043542,-507.10829652,0.00016438,2]
[327283049,1715961043553,-500.0,0.00016438,2]
[327283051,1715961043563,-501.15457218,0.00016438,2]
[327283052,1715961043573,-500.0,0.00016438,2]
[327283053,1715961043583,-413.09358561,0.00016438,2]
[327283054,1715961043594,-381.39477028,0.00016438,2]
[327283055,1715961043605,-500.0,0.00016438,2]
[327283056,1715961043738,-630.38,0.00016438,2]
[327283057,1715961043748,-510.74930335,0.00016438,2]
[327283058,1715961043758,-538.70729869,0.00016438,2]
[327283059,1715961043767,-500.0,0.00016438,2]
[327283060,1715961043776,-500.0,0.00016438,2]
[327283061,1715961043786,-500.0,0.00016438,2]
[327283062,1715961043795,-500.0,0.00016438,2]
[327283063,1715961043804,-500.0,0.00016438,2]
[327283064,1715961043813,-500.0,0.00016438,2]
[327283065,1715961043823,-500.0,0.00016438,2]
[327283066,1715961043832,-500.0,0.00016438,2]
[327283067,1715961043845,-500.0,0.00016438,2]
[327283068,1715961043855,-582.57446139,0.00016438,2]
[327283069,1715961043865,-500.0,0.00016438,2]
[327283070,1715961043875,-504.84163193,0.00016438,2]
[327283071,1715961043885,-501.41407099,0.00016438,2]
[327283072,1715961043895,-500.0,0.00016438,2]
[327283073,1715961043904,-580.52,0.00016438,2]
[327283074,1715961043913,-500.0,0.00016438,2]
[327283075,1715961043924,-500.0,0.00016438,2]
[327283076,1715961043934,-500.0,0.00016438,2]
[327283077,1715961043944,-500.0,0.00016438,2]
[327283078,1715961043953,-500.0,0.00016438,2]
[327283079,1715961043963,-289.53949582,0.00016438,2]
[327283080,1715961043972,-500.0,0.00016438,2]
[327283081,1715961043982,-505.18062299,0.00016438,2]
[327283082,1715961043993,-503.19134379,0.00016438,2]
[327283083,1715961044003,-567.74176865,0.00016438,2]
[327283084,1715961044012,-500.0,0.00016438,2]
[327283085,1715961044022,-500.0,0.00016438,2]
[327283086,1715961044032,-514.39481463,0.00016438,2]
[327283087,1715961044042,-500.0,0.00016438,2]
[327283088,1715961044051,-500.0,0.00016438,2]
[327283089,1715961044062,-500.0,0.00016438,2]
[327283090,1715961044071,-500.0,0.00016438,2]
[327283091,1715961044080,-503.05824176,0.00016438,2]
[327283092,1715961044090,-500.0,0.00016438,2]
[327283093,1715961044099,-500.0,0.00016438,2]
[327283094,1715961044108,-500.0,0.00016438,2]
[327283095,1715961044118,-500.0,0.00016438,2]
[327283096,1715961044127,-500.0,0.00016438,2]
[327283097,1715961044137,-500.0,0.00016438,2]
[327283098,1715961044147,-500.0,0.00016438,2]
[327283099,1715961044156,-500.0,0.00016438,2]
[327283100,1715961044165,-500.0,0.00016438,2]
[327283101,1715961044174,-500.0,0.00016438,2]
[327283102,1715961044184,-500.0,0.00016438,2]
[327283103,1715961044193,-292.48134252,0.00016438,2]
[327283104,1715961044203,-500.0,0.00016438,2]
[327283105,1715961044212,-237.75,0.00016438,2]
[327283106,1715961044222,-504.02315928,0.00016438,2]
[327283107,1715961044231,-500.0,0.00016438,2]
[327283108,1715961044241,-500.0,0.00016438,2]
[327283109,1715961044251,-500.0,0.00016438,2]
[327283110,1715961044259,-500.0,0.00016438,2]
[327283111,1715961044269,-500.0,0.00016438,2]
[327283112,1715961044279,-521.51,0.00016438,2]
[327283113,1715961044288,-500.0,0.00016438,2]
[327283114,1715961044299,-531.68564142,0.00016438,2]
[327283115,1715961044308,-504.14505607,0.00016438,2]
[327283116,1715961044318,-500.0,0.00016438,2]
[327283117,1715961044328,-500.0,0.00016438,2]
[327283118,1715961044337,-500.0,0.00016438,2]
[327283119,1715961044347,-500.0,0.00016438,2]
[327283120,1715961044357,-501.54983134,0.00016438,2]
[327283121,1715961044366,-500.0,0.00016438,2]
[327283122,1715961044376,-501.02206245,0.00016438,2]
[327283123,1715961044386,-499.99611016,0.00016438,2]
[327283124,1715961044396,-464.37156724,0.00016438,2]
[327283125,1715961044406,-500.0,0.00016438,2]
[327283126,1715961044415,-500.0,0.00016438,2]
[327283127,1715961044424,-573.80270219,0.00016438,2]
[327283128,1715961044434,-500.98365874,0.00016438,2]
[327283129,1715961044444,-500.0,0.00016438,2]
[327283130,1715961044453,-500.0,0.00016438,2]
[327283131,1715961044463,-500.0,0.00016438,2]
[327283132,1715961044472,-500.0,0.00016438,2]
[327283133,1715961044482,-504.03598474,0.00016438,2]
[327283134,1715961044494,-500.0,0.00016438,2]
[327283135,1715961044503,-500.0,0.00016438,2]
[327283136,1715961044513,-500.0,0.00016438,2]
[327283137,1715961044523,-501.35915646,0.00016438,2]
[327283138,1715961044532,-500.0,0.00016438,2]
[327283139,1715961044541,-247.05,0.00016438,2]
[327283140,1715961044551,-500.0,0.00016438,2]
[327283141,1715961044560,-500.0,0.00016438,2]
[327283142,1715961044570,-503.56077374,0.00016438,2]
[327283143,1715961044579,-500.0,0.00016438,2]
[327283144,1715961044589,-504.05135305,0.00016438,2]
[327283145,1715961044598,-500.0,0.00016438,2]
[327283146,1715961044607,-500.94497257,0.00016438,2]
[327283147,1715961044617,-500.0,0.00016438,2]
[327283148,1715961044627,-500.0,0.00016438,2]
[327283149,1715961044637,-500.0,0.00016438,2]
[327283150,1715961044646,-500.0,0.00016438,2]
[327283151,1715961044656,-500.0,0.00016438,2]
[327283152,1715961044665,-500.0,0.00016438,2]
[327283153,1715961044675,-262.56217749,0.00016438,2]
[327283154,1715961044684,-500.0,0.00016438,2]
[327283155,1715961044694,-500.0,0.00016438,2]
[327283156,1715961044703,-501.216286,0.00016438,2]
[327283157,1715961044712,-500.0,0.00016438,2]
[327283158,1715961044721,-500.0,0.00016438,2]
[327283159,1715961044731,-500.0,0.00016438,2]
[327283160,1715961044741,-500.0,0.00016438,2]
[327283161,1715961044750,-500.0,0.00016438,2]
[327283162,1715961044759,-500.0,0.00016438,2]
[327283163,1715961044769,-500.0,0.00016438,2]
[327283164,1715961044779,-162.76,0.00016438,2]
[327283165,1715961044789,-500.0,0.00016438,2]
[327283166,1715961044798,-253.76690719,0.00016438,2]
[327283167,1715961044807,-500.0,0.00016438,2]
[327283168,1715961044817,-500.0,0.00016438,2]
[327283169,1715961044826,-500.0,0.00016438,2]
[327283170,1715961044836,-500.0,0.00016438,2]
[327283171,1715961044848,-514.70408881,0.00016438,2]
[327283172,1715961044861,-500.0,0.00016438,2]
[327283173,1715961044871,-537.12583276,0.00016438,2]
[327283174,1715961044880,-500.0,0.00016438,2]
[327283175,1715961044890,-500.0,0.00016438,2]
[327283176,1715961044901,-500.65962863,0.00016438,2]
[327283177,1715961044910,-500.0,0.00016438,2]
[327283178,1715961044920,-500.0,0.00016438,2]
[327283179,1715961044931,-500.0,0.00016438,2]
[327283180,1715961044941,-500.0,0.00016438,2]
[327283181,1715961044950,-500.0,0.00016438,2]
[327283182,1715961044959,-500.0,0.00016438,2]
[327283183,1715961044969,-500.0,0.00016438,2]
[327283184,1715961044979,-500.0,0.00016438,2]
[327283185,1715961044989,-500.0,0.00016438,2]
[327283186,1715961044998,-500.0,0.00016438,2]
[327283187,1715961045008,-500.0,0.00016438,2]
[327283188,1715961045017,-500.0,0.00016438,2]
[327283189,1715961045027,-500.0,0.00016438,2]
[327283190,1715961045036,-500.0,0.00016438,2]
[327283191,1715961045046,-500.0,0.00016438,2]
[327283192,1715961045055,-500.0,0.00016438,2]
[327283193,1715961045065,-500.0,0.00016438,2]
[327283194,1715961045074,-500.54868686,0.00016438,2]
[327283195,1715961045085,-501.76010348,0.00016438,2]
[327283196,1715961045094,-1708.7,0.00016438,2]
[327283197,1715961045104,-512.86079033,0.00016438,2]
[327283198,1715961045113,-500.0,0.00016438,2]
[327283199,1715961045123,-429.61752755,0.00016438,2]
[327283200,1715961045133,-500.0,0.00016438,2]
[327283201,1715961045142,-383.78514551,0.00016438,2]
[327283202,1715961045151,-500.0,0.00016438,2]
[327283203,1715961045162,-570.6247994,0.00016438,2]
[327283204,1715961045171,-500.0,0.00016438,2]
[327283205,1715961045181,-500.0,0.00016438,2]
[327283206,1715961045191,-500.0,0.00016438,2]
[327283207,1715961045200,-500.0,0.00016438,2]
[327283208,1715961045210,-501.98543412,0.00016438,2]
[327283209,1715961045220,-500.0,0.00016438,2]
[327283210,1715961045229,-500.0,0.00016438,2]
[327283211,1715961045242,-500.0,0.00016438,2]
[327283212,1715961045251,-500.57130247,0.00016438,2]
[327283213,1715961045261,-500.0,0.00016438,2]
[327283214,1715961045270,-500.0,0.00016438,2]
[327283215,1715961045280,-500.66696374,0.00016438,2]
[327283216,1715961045291,-500.0,0.00016438,2]
[327283217,1715961045300,-500.0,0.00016438,2]
[327283218,1715961045308,-500.0,0.00016438,2]
[327283219,1715961045318,-500.0,0.00016438,2]
[327283220,1715961045327,-506.05185198,0.00016438,2]
[327283222,1715961045336,-500.0,0.00016438,2]
[327283224,1715961045345,-244.22158648,0.00016438,2]
[327283226,1715961045355,-500.0,0.00016438,2]
[327283227,1715961045365,-500.0,0.00016438,2]
[327283228,1715961045374,-3573.28,0.00016438,2]
[327283229,1715961045383,-500.0,0.00016438,2]
[327283231,1715961045393,-500.0,0.00016438,2]
[327283232,1715961045402,-500.4893744,0.00016438,2]
[327283233,1715961045412,-500.0,0.00016438,2]
[327283234,1715961045422,-500.0,0.00016438,2]
[327283235,1715961045431,-604.63,0.00016438,2]
[327283236,1715961045441,-500.0,0.00016438,2]
[327283237,1715961045451,-500.0,0.00016438,2]
[327283238,1715961045461,-500.0,0.00016438,2]
[327283239,1715961045472,-500.0,0.00016438,2]
[327283240,1715961045482,-500.0,0.00016438,2]
[327283241,1715961045498,-500.0,0.00016438,2]
[327283242,1715961045507,-500.0,0.00016438,2]
[327283243,1715961045516,-567.38,0.00016438,2]
[327283244,1715961045525,-500.0,0.00016438,2]
[327283245,1715961045535,-500.0,0.00016438,2]
[327283246,1715961045543,-500.0,0.00016438,2]
[327283247,1715961045553,-500.0,0.00016438,2]
[327283248,1715961045562,-500.0,0.00016438,2]
[327283249,1715961045571,-500.0,0.00016438,2]
[327283251,1715961045580,-500.0,0.00016438,2]
[327283252,1715961045588,-500.0,0.00016438,2]
[327283254,1715961045597,-500.0,0.00016438,2]
[327283256,1715961045606,-500.0,0.00016438,2]
[327283258,1715961045616,-500.0,0.00016438,2]
[327283260,1715961045625,-500.0,0.00016438,2]
[327283262,1715961045635,-500.0,0.00016438,2]
[327283264,1715961045645,-392.13942571,0.00016438,2]
[327283266,1715961045655,-500.0,0.00016438,2]
[327283267,1715961045665,-500.66316438,0.00016438,2]
[327283269,1715961045675,-500.0,0.00016438,2]
[327283271,1715961045685,-500.0,0.00016438,2]
[327283272,1715961045695,-508.0415293,0.00016438,2]
[327283274,1715961045704,-500.0,0.00016438,2]
[327283275,1715961045713,-500.0,0.00016438,2]
[327283277,1715961045722,-500.0,0.00016438,2]
[327283279,1715961045732,-500.0,0.00016438,2]
[327283281,1715961045744,-500.0,0.00016438,2]
[327283282,1715961045755,-500.0,0.00016438,2]
[327283284,1715961045763,-500.0,0.00016438,2]
[327283286,1715961045773,-500.0,0.00016438,2]
[327283287,1715961045782,-500.0,0.00016438,2]
[327283288,1715961045791,-501.24730573,0.00016438,2]
[327283289,1715961045800,-497.58485344,0.00016438,2]
[327283290,1715961045810,-500.0,0.00016438,2]
[327283291,1715961045819,-500.0,0.00016438,2]
[327283292,1715961045829,-502.15376415,0.00016438,2]
[327283293,1715961045838,-500.0,0.00016438,2]
[327283294,1715961045852,-500.0,0.00016438,2]
[327283295,1715961045862,-507.67,0.00016438,2]
[327283296,1715961045871,-253.85877786,0.00016438,2]
[327283297,1715961045880,-500.0,0.00016438,2]
[327283298,1715961045891,-500.0,0.00016438,2]
[327283299,1715961045900,-610.5,0.00016438,2]
[327283300,1715961045910,-500.0,0.00016438,2]
[327283301,1715961045921,-500.0,0.00016438,2]
[327283302,1715961045931,-500.0,0.00016438,2]
[327283303,1715961045940,-500.0,0.00016438,2]
[327283305,1715961045949,-500.0,0.00016438,2]
[327283306,1715961045959,-500.0,0.00016438,2]
[327283308,1715961045969,-500.0,0.00016438,2]
[327283310,1715961045979,-500.0,0.00016438,2]
[327283312,1715961045991,-500.0,0.00016438,2]
[327283313,1715961046003,-500.0,0.00016438,2]
[327283314,1715961046012,-500.0,0.00016438,2]
[327283315,1715961046022,-500.0,0.00016438,2]
[327283316,1715961046031,-500.0,0.00016438,2]
[327283317,1715961046042,-500.0,0.00016438,2]
[327283318,1715961046051,-500.0,0.00016438,2]
[327283319,1715961046062,-500.0,0.00016438,2]
[327283320,1715961046071,-500.0,0.00016438,2]
[327283321,1715961046080,-500.0,0.00016438,2]
[327283322,1715961046090,-501.683168,0.00016438,2]
[327283323,1715961046099,-500.0,0.00016438,2]
[327283324,1715961046109,-500.0,0.00016438,2]
[327283325,1715961046118,-500.0,0.00016438,2]
[327283326,1715961046128,-500.0,0.00016438,2]
[327283327,1715961046137,-500.0,0.00016438,2]
[327283328,1715961046146,-546.60304038,0.00016438,2]
[327283329,1715961046156,-500.0,0.00016438,2]
[327283330,1715961046165,-1000.0,0.00016438,2]
[327283331,1715961046175,-500.0,0.00016438,2]
[327283333,1715961046184,-500.0,0.00016438,2]
[327283334,1715961046194,-546.47592196,0.00016438,2]
[327283336,1715961046203,-2133.01,0.00016438,2]
[327283338,1715961046213,-500.0,0.00016438,2]
[327283339,1715961046222,-500.0,0.00016438,2]
[327283340,1715961046232,-500.0,0.00016438,2]
[327283341,1715961046243,-500.0,0.00016438,2]
[327283342,1715961046253,-550.0,0.00016438,2]
[327283343,1715961046262,-672.70350214,0.00016473,2]
[327283344,1715961046275,-672.70350214,0.00016543,2]
[327283345,1715961046285,-672.70350214,0.00016612,2]
[327283346,1715961046294,-500.0,0.00016711,2]
[327283347,1715961046304,-500.0,0.00016711,2]
[327283348,1715961046313,-500.0,0.00016712,2]
[327283349,1715961046323,-500.0,0.00016712,2]
[327283350,1715961046332,-500.0,0.00016712,2]
[327283351,1715961046341,-501.35068182,0.00016712,2]
[327283352,1715961046350,-502.09108214,0.00016712,2]
[327283353,1715961046360,-100.69941518,0.00016712,2]
[327283354,1715961046402,-500.0,0.00016438,2]
[327283355,1715961046412,-399.30058482,0.00016712,2]
[327283356,1715961046422,-500.0,0.00016712,2]
[327283357,1715961046432,-500.0,0.00016712,2]
[327283358,1715961046441,-504.64613082,0.00016712,2]
[327283359,1715961046451,-171.40882817,0.00016712,2]
[327283360,1715961046462,-328.59117183,0.00016712,2]
[327283361,1715961046472,-501.43052701,0.00016712,2]
[327283362,1715961046482,-500.0,0.00016712,2]
[327283363,1715961046493,-402.48185391,0.00016712,2]
[327283364,1715961046505,-97.51814609,0.00016712,2]
[327283365,1715961046514,-395.24628114,0.00016712,2]
[327283366,1715961046523,-500.0,0.00016712,2]
[327283367,1715961046532,-500.0,0.00016712,2]
[327283368,1715961046542,-500.0,0.00016712,2]
[327283369,1715961046552,-500.0,0.00016712,2]
[327283370,1715961046561,-607.31,0.00016712,2]
[327283371,1715961046571,-502.55552709,0.00016712,2]
[327283372,1715961046581,-500.0,0.00016712,2]
[327283373,1715961046591,-500.0,0.00016712,2]
[327283374,1715961046600,-500.0,0.00016712,2]
[327283375,1715961046611,-500.0,0.00016712,2]
[327283376,1715961046621,-500.0,0.00016712,2]
[327283377,1715961046630,-500.0,0.00016712,2]
[327283378,1715961046640,-108.27004568,0.00016712,2]
[327283379,1715961046652,-391.72995432,0.00016712,2]
[327283380,1715961046661,-502.82623045,0.00016712,2]
[327283381,1715961046671,-500.0,0.00016712,2]
[327283382,1715961046681,-500.0,0.00016712,2]
[327283383,1715961046690,-500.0,0.00016712,2]
[327283384,1715961046699,-500.0,0.00016712,2]
[327283385,1715961046816,-500.0,0.00016712,2]
[327283386,1715961046826,-500.0,0.00016712,2]
[327283387,1715961046836,-360.02220081,0.00016712,2]
[327283388,1715961046846,-622.62,0.00016712,2]
[327283389,1715961046860,-616.17,0.00016712,2]
[327283390,1715961046870,-500.0,0.00016712,2]
[327283391,1715961046879,-500.0,0.00016712,2]
[327283392,1715961046889,-500.0,0.00016712,2]
[327283393,1715961046901,-500.0,0.00016712,2]
[327283394,1715961046911,-500.0,0.00016712,2]
[327283395,1715961046920,-502.20795587,0.00016712,2]
[327283396,1715961046931,-500.0,0.00016712,2]
[327283397,1715961046941,-500.0,0.00016712,2]
[327283398,1715961046951,-500.0,0.00016712,2]
[327283399,1715961046960,-500.0,0.00016712,2]
[327283400,1715961046970,-594.53,0.00016712,2]
[327283401,1715961046980,-170.54190603,0.00016712,2]
[327283402,1715961046992,-532.34675723,0.00016712,2]
[327283403,1715961047001,-500.0,0.00016712,2]
[327283404,1715961047011,-500.0,0.00016712,2]
[327283405,1715961047021,-500.0,0.00016712,2]
[327283406,1715961047030,-262.86476408,0.00016712,2]
[327283407,1715961047040,-500.0,0.00016712,2]
[327283408,1715961047049,-503.54717848,0.00016712,2]
[327283409,1715961047059,-500.0,0.00016712,2]
[327283410,1715961047068,-500.0,0.00016712,2]
[327283411,1715961047077,-507.9020059,0.00016712,2]
[327283412,1715961047088,-589.51951981,0.00016712,2]
[327283413,1715961047098,-281.06024643,0.00016712,2]
[327283414,1715961047107,-500.0,0.00016712,4]
[327283415,1715961047116,-503.73341717,0.00016712,2]
[327283416,1715961047126,-500.0,0.00016712,2]
[327283417,1715961047136,-517.51895504,0.00016712,2]
[327283418,1715961047145,-500.0,0.00016712,2]
[327283419,1715961047154,-500.0,0.00016712,2]
[327283420,1715961047163,-500.0,0.00016712,2]
[327283421,1715961047173,-500.0,0.00016712,2]
[327283422,1715961047182,-500.0,0.00016712,2]
[327283423,1715961047191,-609.51,0.00016712,2]
[327283424,1715961047200,-500.0,0.00016712,2]
[327283425,1715961047209,-500.0,0.00016712,2]
[327283426,1715961047219,-505.58600913,0.00016712,2]
[327283427,1715961047228,-500.0,0.00016712,2]
[327283428,1715961047237,-500.0,0.00016712,2]
[327283429,1715961047247,-500.0,0.00016712,2]
[327283430,1715961047255,-500.0,0.00016712,2]
[327283431,1715961047264,-500.0,0.00016712,2]
[327283432,1715961047274,-500.0,0.00016712,2]
[327283433,1715961047283,-500.0,0.00016712,2]
[327283434,1715961047293,-500.0,0.00016712,2]
[327283435,1715961047303,-500.0,0.00016712,2]
[327283436,1715961047312,-620.15,0.00016712,2]
[327283437,1715961047321,-500.0,0.00016712,2]
[327283438,1715961047331,-500.0,0.00016712,2]
[327283439,1715961047340,-398.14048325,0.00016712,2]
[327283440,1715961047353,-101.85951675,0.00016712,2]
[327283441,1715961047362,-502.20492678,0.00016712,2]
[327283442,1715961047371,-500.0,0.00016712,2]
[327283443,1715961047381,-500.0,0.00016712,2]
[327283444,1715961047391,-504.40740984,0.00016712,2]
[327283445,1715961047400,-500.0,0.00016712,2]
[327283446,1715961047410,-500.0,0.00016712,2]
[327283447,1715961047419,-421.45599634,0.00016712,2]
[327283448,1715961047428,-500.0,0.00016712,2]
[327283449,1715961047438,-500.0,0.00016712,2]
[327283450,1715961047447,-500.0,0.00016712,2]
[327283451,1715961047456,-500.0,0.00016712,2]
[327283452,1715961047466,-502.56156228,0.00016712,2]
[327283453,1715961047475,-502.19378689,0.00016712,2]
[327283454,1715961047485,-504.08014551,0.00016712,2]
[327283455,1715961047496,-500.0,0.00016712,2]
[327283456,1715961047505,-500.0,0.00016712,2]
[327283457,1715961047515,-500.0,0.00016712,2]
[327283458,1715961047524,-502.53192493,0.00016712,2]
[327283459,1715961047533,-500.0,0.00016712,2]
[327283460,1715961047542,-575.70356352,0.00016712,2]
[327283461,1715961047552,-500.0,0.00016712,2]
[327283462,1715961047561,-500.0,0.00016712,2]
[327283463,1715961047571,-501.64087492,0.00016712,2]
[327283464,1715961047580,-501.93450787,0.00016712,2]
[327283465,1715961047589,-500.0,0.00016712,2]
[327283466,1715961047599,-500.0,0.00016712,2]
[327283467,1715961047608,-500.0,0.00016712,2]
[327283468,1715961047617,-500.0,0.00016712,2]
[327283469,1715961047626,-585.04,0.00016712,2]
[327283470,1715961047636,-500.0,0.00016712,2]
[327283471,1715961047645,-290.42490605,0.00016712,2]
[327283472,1715961047654,-1708.7,0.00016712,2]
[327283473,1715961047663,-500.0,0.00016712,2]
[327283474,1715961047672,-500.0,0.00016712,2]
[327283475,1715961047682,-500.0,0.00016712,2]
[327283476,1715961047692,-500.0,0.00016712,2]
[327283477,1715961047701,-500.0,0.00016712,2]
[327283478,1715961047711,-260.17480176,0.00016712,2]